bitfinex/quotes_BTCUSD_20250916
["timestamp","ask_amount","ask_price","bid_price","bid_amount"]
[1758036859349,1.05678253,115310.0,115300.0,0.56036772]
[1758036859600,1.33046253,115310.0,115300.0,0.56036772]
[1758036860197,1.05678253,115310.0,115300.0,0.56036772]
[1758036860415,1.33046253,115310.0,115300.0,0.56036772]
[1758036861755,1.33046253,115310.0,115300.0,0.16036772]
[1758036862208,1.33046253,115310.0,115300.0,0.56036772]
[1758036865193,1.05678253,115310.0,115300.0,0.16036772]
[1758036865414,1.33046253,115310.0,115300.0,0.16036772]
[1758036865884,1.33046253,115310.0,115300.0,0.56036772]
[1758036866205,0.88547549,115310.0,115300.0,0.73382825]
[1758036866325,0.93548549,115310.0,115300.0,0.75878825]
[1758036866575,0.93847549,115310.0,115300.0,0.75878825]
[1758036866826,0.96109549,115310.0,115300.0,0.75878825]
[1758036867066,0.96109549,115310.0,115300.0,0.73382825]
[1758036868857,0.96109549,115310.0,115300.0,0.33382825]
[1758036869277,0.96109549,115310.0,115300.0,0.73382825]
[1758036869831,0.96109549,115310.0,115300.0,0.72532825]
[1758036871152,0.68741549,115310.0,115300.0,0.72532825]
[1758036871440,0.96109549,115310.0,115300.0,0.72532825]
[1758036872183,0.33638,115310.0,115300.0,1.14772985]
[1758036872376,0.71006,115310.0,115300.0,1.17268985]
[1758036873647,0.43638,115310.0,115300.0,1.17268985]
[1758036873852,0.71006,115310.0,115300.0,1.17268985]
[1758036874264,0.43638,115310.0,115300.0,1.17268985]
[1758036874439,0.71006,115310.0,115300.0,1.17268985]
[1758036874638,0.0031,115310.0,115300.0,1.17268985]
[1758036874881,0.27674,115310.0,115300.0,1.17268985]
[1758036875090,0.27674,115310.0,115300.0,1.19874202]
[1758036875290,0.27664,115310.0,115300.0,0.78484042]
[1758036875464,0.27664,115310.0,115300.0,1.19874202]
[1758036882461,0.27664,115310.0,115300.0,1.19874202]
[1758036883883,0.003,115310.0,115300.0,1.56889392]
[1758036884086,0.13852,115310.0,115300.0,1.56889392]
[1758036884914,0.13752,115310.0,115300.0,1.56889392]
[1758036885112,0.13852,115310.0,115300.0,1.56889392]
[1758036885716,0.13652,115310.0,115300.0,1.56789392]
[1758036885973,0.13852,115310.0,115300.0,1.56889392]
[1758036886405,0.13652,115310.0,115300.0,1.56789392]
[1758036886607,0.35723328,115320.0,115310.0,0.17344549]
[1758036886812,0.35723328,115320.0,115310.0,0.67384854]
[1758036887013,0.35723328,115320.0,115310.0,0.69675854]
[1758036887161,0.35723328,115320.0,115310.0,1.09675854]
[1758036887361,0.35723328,115320.0,115310.0,1.12280729]
[1758036887758,0.35823328,115320.0,115310.0,1.12280729]
[1758036888941,0.36023328,115320.0,115310.0,1.12380729]
[1758036890399,0.36023328,115320.0,115310.0,1.62380729]
[1758036890551,0.36023328,115320.0,115310.0,1.6326746]
[1758036891310,0.36227328,115320.0,115310.0,1.6326746]
[1758036891534,0.36227328,115320.0,115310.0,1.218773]
[1758036891740,0.36023328,115320.0,115310.0,1.6326746]
[1758036893834,0.36023328,115320.0,115310.0,1.218773]
[1758036894036,0.36227328,115320.0,115310.0,1.6326746]
[1758036894257,0.36227328,115320.0,115310.0,1.218773]
[1758036894465,0.36227328,115320.0,115310.0,1.6326746]
[1758036894671,0.36023328,115320.0,115310.0,1.6326746]
[1758036894878,0.36023328,115320.0,115310.0,1.218773]
[1758036895127,0.36532328,115320.0,115310.0,1.195963]
[1758036895338,0.38902328,115320.0,115310.0,1.195963]
[1758036895559,0.38902328,115320.0,115310.0,1.6326746]
[1758036895773,0.36532328,115320.0,115310.0,1.6326746]
[1758036896653,1.12635533,115320.0,115310.0,0.98760145]
[1758036897084,1.12645533,115320.0,115310.0,0.98760145]
[1758036899019,1.12645533,115320.0,115310.0,0.48760145]
[1758036899224,1.12641533,115320.0,115310.0,0.48760145]
[1758036900262,1.21641533,115320.0,115310.0,0.66104694]
[1758036900471,0.80251373,115320.0,115310.0,0.66104694]
[1758036900677,0.30552328,115320.0,115310.0,0.66104694]
[1758036900883,0.55556328,115320.0,115310.0,1.09994854]
[1758036901473,0.60556328,115320.0,115310.0,1.09994854]
[1758036901686,0.33200328,115320.0,115310.0,0.68604694]
[1758036901912,0.55556328,115320.0,115310.0,1.09994854]
[1758036902165,0.72576373,115320.0,115310.0,1.09994854]
[1758036902378,0.27877328,115320.0,115310.0,1.09994854]
[1758036902618,0.55556328,115320.0,115310.0,1.07494854]
[1758036902892,0.55233328,115320.0,115310.0,1.10844854]
[1758036903317,0.27673328,115320.0,115310.0,1.10844854]
[1758036903519,0.55029328,115320.0,115310.0,1.10844854]
[1758036904170,0.17673328,115320.0,115310.0,1.10844854]
[1758036904393,0.55029328,115320.0,115310.0,1.10844854]
[1758036905063,0.45029328,115320.0,115310.0,1.10844854]
[1758036905291,0.55029328,115320.0,115310.0,1.10844854]
[1758036905733,0.45029328,115320.0,115310.0,1.10844854]
[1758036905959,0.27673328,115320.0,115310.0,1.10844854]
[1758036906184,0.36019328,115320.0,115310.0,1.10844854]
[1758036906407,0.36019328,115320.0,115310.0,1.1344977]
[1758036908678,0.36524328,115320.0,115310.0,0.7205961]
[1758036908894,0.36524328,115320.0,115310.0,1.1344977]
[1758036909124,0.36524328,115320.0,115310.0,0.7205961]
[1758036909318,0.36524328,115320.0,115310.0,1.1344977]
[1758036909549,0.36217328,115320.0,115310.0,1.1344977]
[1758036909810,0.36524328,115320.0,115310.0,1.1344977]
[1758036910008,0.36217328,115320.0,115310.0,1.1344977]
[1758036911082,0.36019328,115320.0,115310.0,1.1344977]
[1758036911784,0.36019328,115320.0,115310.0,0.7205961]
[1758036911984,0.36019328,115320.0,115310.0,1.1344977]
[1758036912469,0.08663328,115320.0,115310.0,1.1344977]
[1758036912685,0.36015328,115320.0,115310.0,1.1344977]
[1758036912902,0.08663328,115320.0,115310.0,1.1259977]
[1758036913092,0.36015328,115320.0,115310.0,1.1259977]
[1758036916716,0.08663328,115320.0,115310.0,1.1259977]
[1758036916951,0.36015328,115320.0,115310.0,1.1259977]
[1758036917890,0.36015328,115320.0,115310.0,1.1344977]
[1758036918793,0.36015328,115320.0,115310.0,0.7205961]
[1758036919007,0.36015328,115320.0,115310.0,1.1344977]
[1758036919913,0.36213328,115320.0,115310.0,1.1344977]
[1758036920361,0.36520328,115320.0,115310.0,0.6955961]
[1758036920582,0.38823328,115320.0,115310.0,1.1094977]
[1758036921234,0.38823328,115320.0,115310.0,1.1329377]
[1758036921450,0.36520328,115320.0,115310.0,1.1329377]
[1758036922133,0.36213328,115320.0,115310.0,1.1329377]
[1758036922357,0.36015328,115320.0,115310.0,1.1329377]
[1758036922794,0.41015328,115320.0,115310.0,1.1329377]
[1758036923018,0.46015328,115320.0,115310.0,1.1329377]
[1758036923457,0.46011328,115320.0,115310.0,1.1329377]
[1758036924343,0.46011328,115320.0,115310.0,0.7190361]
[1758036924557,0.46011328,115320.0,115310.0,1.1329377]
[1758036925616,0.18663328,115320.0,115310.0,1.1329377]
[1758036925827,0.36011328,115320.0,115310.0,1.1329377]
[1758036926103,0.46011328,115320.0,115310.0,1.1329377]
[1758036926520,0.27679328,115320.0,115310.0,1.1329377]
[1758036927527,0.27679328,115320.0,115310.0,0.7190361]
[1758036927742,0.27679328,115320.0,115310.0,1.1329377]
[1758036928380,0.27679328,115320.0,115310.0,1.6329377]
[1758036931623,0.27679328,115320.0,115310.0,1.6244377]
[1758036933784,0.27679328,115320.0,115310.0,1.57826619]
[1758036936759,0.27679328,115320.0,115310.0,1.58676619]
[1758036940526,0.00331328,115320.0,115310.0,1.58676619]
[1758036940731,0.27679328,115320.0,115310.0,1.58676619]
[1758036940958,0.27679328,115320.0,115310.0,1.2190361]
[1758036941377,0.00331328,115320.0,115310.0,1.2190361]
[1758036941646,0.27675328,115320.0,115310.0,1.2190361]
[1758036942523,0.00331328,115320.0,115310.0,1.58676619]
[1758036942795,0.27675328,115320.0,115310.0,1.58676619]
[1758036943910,0.27675328,115320.0,115310.0,1.86020619]
[1758036945050,0.00331328,115320.0,115310.0,1.86020619]
[1758036947146,0.00331328,115320.0,115310.0,1.85170619]
[1758036950551,0.00331328,115320.0,115310.0,1.88185809]
[1758036952295,0.00331328,115320.0,115310.0,1.89035809]
[1758036953655,0.00331328,115320.0,115310.0,1.61691809]
[1758036954625,0.00331328,115320.0,115310.0,1.249188]
[1758036954873,0.00331328,115320.0,115310.0,1.61691809]
[1758036955426,0.00331328,115320.0,115310.0,1.60841809]
[1758036958090,0.00331328,115320.0,115310.0,2.59804818]
[1758036958526,0.00331328,115320.0,115310.0,2.19804818]
[1758036958718,0.00331328,115320.0,115310.0,2.18954818]
[1758036958913,0.00231328,115320.0,115310.0,2.18954818]
[1758036959158,0.00231328,115320.0,115310.0,2.58954818]
[1758036959375,0.00031328,115320.0,115310.0,2.59054818]
[1758036960002,0.00131328,115320.0,115310.0,2.59154818]
[1758036960803,0.00131328,115320.0,115310.0,2.22381809]
[1758036961538,0.00131328,115320.0,115310.0,2.22377809]
[1758036963594,0.00131328,115320.0,115310.0,2.23227809]
[1758036964737,0.00131328,115320.0,115310.0,1.95891809]
[1758036964960,0.00131328,115320.0,115310.0,2.23227809]
[1758036965173,0.00131328,115320.0,115310.0,1.591188]
[1758036965559,0.00131328,115320.0,115310.0,1.864548]
[1758036965782,0.00131328,115320.0,115310.0,1.95891809]
[1758036965914,0.00131328,115320.0,115310.0,2.23227809]
[1758036966359,0.00131328,115320.0,115310.0,1.95891809]
[1758036966560,0.00131328,115320.0,115310.0,2.23227809]
[1758036967579,0.00131328,115320.0,115310.0,1.591188]
[1758036967782,0.00131328,115320.0,115310.0,1.8343961]
[1758036969010,0.00131328,115320.0,115310.0,1.8258961]
[1758036969454,0.00131328,115320.0,115310.0,1.5525361]
[1758036969866,0.00131328,115320.0,115310.0,1.92026619]
[1758036970226,0.00131328,115320.0,115310.0,2.19358619]
[1758036973649,0.00131328,115320.0,115310.0,1.79358619]
[1758036974104,0.00131328,115320.0,115310.0,2.20208619]
[1758036980028,0.00131328,115320.0,115310.0,2.19358619]
[1758036981053,0.00131328,115320.0,115310.0,1.92026619]
[1758036981259,0.00131328,115320.0,115310.0,2.19354619]
[1758036984680,0.00649328,115320.0,115310.0,1.92026619]
[1758036984890,0.00330328,115320.0,115310.0,2.19354619]
[1758036985106,0.00131328,115320.0,115310.0,2.20204619]
[1758036985351,0.00131328,115320.0,115310.0,2.19354619]
[1758036990358,0.00131328,115320.0,115310.0,2.20204619]
[1758036990564,0.00131328,115320.0,115310.0,2.19354619]
[1758036992054,0.00131328,115320.0,115310.0,2.59992818]
[1758036992269,0.00131328,115320.0,115310.0,2.19992818]
[1758036992691,0.0005,115340.0,115330.0,0.17341541]
[1758036992907,0.0004,115340.0,115330.0,0.8163855]
[1758036993160,0.0004,115340.0,115330.0,0.90288695]
[1758036993345,0.0004,115340.0,115330.0,0.92543695]
[1758036993972,0.0014,115340.0,115330.0,0.95148026]
[1758036994191,0.0044,115340.0,115330.0,0.95248026]
[1758036994608,0.0044,115340.0,115330.0,0.95258026]
[1758036995175,0.0044,115340.0,115330.0,0.67734026]
[1758036995384,0.0044,115340.0,115330.0,0.58477017]
[1758036995614,0.0044,115340.0,115330.0,0.67734026]
[1758036995812,0.0034,115340.0,115330.0,0.99840701]
[1758036996223,0.0014,115340.0,115330.0,0.99740701]
[1758036996441,0.0014,115340.0,115330.0,1.06105118]
[1758036996636,0.0024,115340.0,115330.0,0.64845434]
[1758036996848,0.0024,115340.0,115330.0,1.06201118]
[1758036997274,0.0024,115340.0,115330.0,0.78681118]
[1758036997477,0.0024,115340.0,115330.0,1.06201118]
[1758036997677,0.0024,115340.0,115330.0,0.78681118]
[1758036999320,0.0024,115340.0,115330.0,1.06201118]
[1758037002592,0.0024,115340.0,115330.0,1.09216308]
[1758037003020,0.0024,115340.0,115330.0,1.09220308]
[1758037004373,0.0024,115340.0,115330.0,1.44070308]
[1758037004624,0.0024,115340.0,115330.0,1.94070308]
[1758037005282,0.0024,115340.0,115330.0,2.35425992]
[1758037005914,1e-08,115340.0,115330.0,2.35425992]
[1758037006351,0.0004,115350.0,115340.0,0.54355228]
[1758037006557,0.0004,115350.0,115340.0,1.75495741]
[1758037006770,0.0004,115350.0,115340.0,1.75505741]
[1758037006982,0.0004,115350.0,115340.0,1.78109608]
[1758037007181,0.0004,115350.0,115340.0,1.78113938]
[1758037007404,0.0004,115350.0,115340.0,1.50601938]
[1758037007852,0.0024,115350.0,115340.0,2.05199938]
[1758037009092,0.0024,115350.0,115340.0,1.77691938]
[1758037009288,0.0024,115350.0,115340.0,1.63840254]
[1758037009910,0.0024,115350.0,115340.0,2.03840254]
[1758037010147,0.0024,115350.0,115340.0,1.76336254]
[1758037010583,0.0024,115350.0,115340.0,1.49346254]
[1758037011265,0.0024,115350.0,115340.0,1.76838254]
[1758037011913,0.0024,115350.0,115340.0,1.76834254]
[1758037012143,0.0024,115350.0,115340.0,1.49346254]
[1758037012359,0.0024,115350.0,115340.0,1.76830254]
[1758037013055,0.0024,115350.0,115340.0,1.49346254]
[1758037013510,0.0024,115350.0,115340.0,1.76826254]
[1758037014722,0.0024,115350.0,115340.0,1.3547057]
[1758037015084,0.0024,115350.0,115340.0,1.76826254]
[1758037015214,0.0024,115350.0,115340.0,1.8547057]
[1758037015443,0.0024,115350.0,115340.0,2.26826254]
[1758037015832,0.0024,115350.0,115340.0,1.99346254]
[1758037016061,0.0024,115350.0,115340.0,2.26818254]
[1758037016523,0.0024,115350.0,115340.0,1.99346254]
[1758037016747,0.0024,115350.0,115340.0,2.26336254]
[1758037016968,0.0024,115350.0,115340.0,2.53804254]
[1758037017228,0.0024,115350.0,115340.0,2.54654254]
[1758037017439,0.0024,115350.0,115340.0,2.1329857]
[1758037017585,0.0024,115350.0,115340.0,2.54654254]
[1758037019672,0.0024,115350.0,115340.0,2.27186254]
[1758037019921,0.0024,115350.0,115340.0,2.54642254]
[1758037020783,0.0024,115350.0,115340.0,1.8583057]
[1758037021014,0.0024,115350.0,115340.0,2.54642254]
[1758037021887,0.0024,115350.0,115340.0,2.1328657]
[1758037022100,0.0024,115350.0,115340.0,2.54642254]
[1758037022319,0.0024,115350.0,115340.0,2.53792254]
[1758037024527,0.0024,115350.0,115340.0,2.95147938]
[1758037026597,0.0024,115350.0,115340.0,2.53792254]
[1758037027431,0.0024,115350.0,115340.0,2.54642254]
[1758037027854,0.0024,115350.0,115340.0,2.95997938]
[1758037028071,0.0004,115360.0,115350.0,0.54353724]
[1758037028279,0.0004,115360.0,115350.0,1.75456237]
[1758037028695,0.0004,115360.0,115350.0,2.15456237]
[1758037028899,0.0004,115360.0,115350.0,2.18059927]
[1758037029314,0.0014,115360.0,115350.0,2.18064257]
[1758037029527,0.0034,115360.0,115350.0,1.90734257]
[1758037029732,0.0034,115360.0,115350.0,2.18166257]
[1758037030161,0.0034,115360.0,115350.0,2.68166257]
[1758037031546,0.0024,115360.0,115350.0,2.68166257]
[1758037035813,0.0024,115360.0,115350.0,2.40734257]
[1758037036071,0.0024,115360.0,115350.0,2.68142257]
[1758037036956,0.0024,115360.0,115350.0,1.85422889]
[1758037037176,0.0024,115360.0,115350.0,2.40734257]
[1758037037408,0.0024,115360.0,115350.0,2.68130257]
[1758037038613,0.0024,115360.0,115350.0,2.68126257]
[1758037039191,0.0024,115360.0,115350.0,2.40734257]
[1758037039396,0.0024,115360.0,115350.0,1.58022889]
[1758037039605,0.0024,115360.0,115350.0,2.68130257]
[1758037039813,0.0024,115360.0,115350.0,2.40734257]
[1758037040209,0.0024,115360.0,115350.0,2.68980257]
[1758037040656,0.0024,115360.0,115350.0,1.86268889]
[1758037040859,0.0024,115360.0,115350.0,2.41584257]
[1758037041064,0.0024,115360.0,115350.0,1.58872889]
[1758037041295,0.0024,115360.0,115350.0,2.68972257]
[1758037041518,0.0024,115360.0,115350.0,1.86260889]
[1758037041734,0.0024,115360.0,115350.0,2.68972257]
[1758037045310,0.0024,115360.0,115350.0,1.86260889]
[1758037045468,0.0024,115360.0,115350.0,2.68972257]
[1758037045670,0.0024,115360.0,115350.0,1.86260889]
[1758037046098,0.0024,115360.0,115350.0,2.68972257]
[1758037053463,0.0024,115360.0,115350.0,2.68952257]
[1758037055790,0.0024,115360.0,115350.0,2.41584257]
[1758037056006,0.03198,115360.0,115350.0,1.83923889]
[1758037056221,0.03198,115360.0,115350.0,2.2067497]
[1758037056431,0.03198,115360.0,115350.0,2.2305197]
[1758037057523,0.00754,115360.0,115350.0,2.2305197]
[1758037058580,0.00443,115360.0,115350.0,2.2305197]
[1758037058793,0.0024,115360.0,115350.0,2.2220197]
[1758037059193,0.00443,115360.0,115350.0,1.85450889]
[1758037059340,0.00443,115360.0,115350.0,2.2220197]
[1758037061740,0.0024,115360.0,115350.0,2.2220197]
[1758037062546,0.00443,115360.0,115350.0,1.85450889]
[1758037062761,0.00443,115360.0,115350.0,2.2220197]
[1758037063744,0.00443,115360.0,115350.0,2.2305197]
[1758037064586,0.0024,115360.0,115350.0,2.2305197]
[1758037065570,0.00754,115360.0,115350.0,1.86300889]
[1758037065775,0.00754,115360.0,115350.0,2.2305197]
[1758037066004,0.00754,115360.0,115350.0,1.19556699]
[1758037066222,0.03198,115360.0,115350.0,1.53556699]
[1758037066864,0.03198,115360.0,115350.0,1.9030778]
[1758037067737,0.03198,115360.0,115350.0,1.53556699]
[1758037068579,0.03198,115360.0,115350.0,1.19556699]
[1758037070276,0.40538,115360.0,115350.0,1.19556699]
[1758037070869,0.40548,115360.0,115350.0,1.19556699]
[1758037071081,0.40548,115360.0,115350.0,1.18706699]
[1758037071314,0.13208,115360.0,115350.0,1.18706699]
[1758037071495,0.40552,115360.0,115350.0,1.18706699]
[1758037073425,0.40548,115360.0,115350.0,1.18706699]
[1758037073649,0.30548,115360.0,115350.0,1.18706699]
[1758037073867,0.40548,115360.0,115350.0,1.18706699]
[1758037074082,0.30548,115360.0,115350.0,1.5545778]
[1758037074343,0.40548,115360.0,115350.0,1.5545778]
[1758037075974,0.13208,115360.0,115350.0,1.5545778]
[1758037076185,0.40548,115360.0,115350.0,1.5630778]
[1758037076579,0.13208,115360.0,115350.0,1.5630778]
[1758037076788,0.40548,115360.0,115350.0,1.5630778]
[1758037076999,0.40548,115360.0,115350.0,1.19556699]
[1758037077353,0.40548,115360.0,115350.0,1.5630778]
[1758037077354,0.30548,115360.0,115350.0,1.5630778]
[1758037077854,0.40548,115360.0,115350.0,1.5630778]
[1758037078487,0.10764,115360.0,115350.0,1.5630778]
[1758037078697,0.3759,115360.0,115350.0,1.5868478]
[1758037078910,0.0025,115360.0,115350.0,1.5868478]
[1758037079120,0.3759,115360.0,115350.0,1.5783478]
[1758037079956,0.37793,115360.0,115350.0,1.5783478]
[1758037081013,0.38106,115360.0,115350.0,1.5783478]
[1758037081237,0.13231,115360.0,115350.0,1.5783478]
[1758037081444,0.40571,115360.0,115350.0,1.5783478]
[1758037082213,0.10453,115360.0,115350.0,1.5783478]
[1758037082412,0.3759,115360.0,115350.0,1.5864578]
[1758037082878,0.3759,115360.0,115350.0,1.21894699]
[1758037083005,0.3759,115360.0,115350.0,1.5864578]
[1758037083611,0.38125,115360.0,115350.0,1.19556699]
[1758037083875,0.40495,115360.0,115350.0,1.5630778]
[1758037084048,0.40495,115360.0,115350.0,1.19556699]
[1758037084870,0.40495,115360.0,115350.0,1.5630778]
[1758037085420,0.40495,115360.0,115350.0,1.19556699]
[1758037087092,0.40495,115360.0,115350.0,1.5630778]
[1758037088299,0.13155,115360.0,115350.0,1.5630778]
[1758037088525,0.40503,115360.0,115350.0,1.5630778]
[1758037090100,0.40503,115360.0,115350.0,1.19556699]
[1758037090310,0.40503,115360.0,115350.0,1.5630778]
[1758037090526,0.13155,115360.0,115350.0,1.5630778]
[1758037090744,0.40495,115360.0,115350.0,1.5873678]
[1758037091141,0.38125,115360.0,115350.0,1.5873678]
[1758037092068,0.10785,115360.0,115350.0,1.5873678]
[1758037092257,0.2759,115360.0,115350.0,1.5873678]
[1758037092480,0.38125,115360.0,115350.0,1.5873678]
[1758037092699,0.10463,115360.0,115350.0,1.5873678]
[1758037092899,0.3259,115360.0,115350.0,1.5873678]
[1758037093147,0.3759,115360.0,115350.0,1.6175197]
[1758037094770,0.1025,115360.0,115350.0,1.6175197]
[1758037094973,0.3759,115360.0,115350.0,1.6175197]
[1758037096035,0.40495,115360.0,115350.0,1.5932297]
[1758037096216,0.40495,115360.0,115350.0,1.22571889]
[1758037096431,0.55462031,115360.0,115350.0,1.02218165]
[1758037096635,0.57832031,115360.0,115350.0,1.19556699]
[1758037097055,0.57832031,115360.0,115350.0,1.16953009]
[1758037097264,0.37803,115360.0,115350.0,1.5370409]
[1758037097466,0.10785,115360.0,115350.0,1.5613309]
[1758037097673,0.13155,115360.0,115350.0,1.5370409]
[1758037097880,0.40499,115360.0,115350.0,1.5370409]
[1758037098540,0.40499,115360.0,115350.0,1.16953009]
[1758037098717,0.40499,115360.0,115350.0,1.19557113]
[1758037098931,0.48827,115360.0,115350.0,1.19557113]
[1758037103007,0.21483,115360.0,115350.0,1.22572303]
[1758037103207,0.48823,115360.0,115350.0,1.22572303]
[1758037106250,0.21483,115360.0,115350.0,1.61752384]
[1758037106483,0.18578,115360.0,115350.0,1.61752384]
[1758037106737,0.45922,115360.0,115350.0,1.61752384]
[1758037106957,0.45922,115360.0,115350.0,1.11752384]
[1758037107664,0.46457,115360.0,115350.0,0.71986113]
[1758037107922,0.48827,115360.0,115350.0,0.69557113]
[1758037108170,0.66164031,115360.0,115350.0,0.69557113]
[1758037108633,0.71164031,115360.0,115350.0,0.66953009]
[1758037109221,1.07915112,115360.0,115350.0,0.66953009]
[1758037109433,1.07915112,115360.0,115350.0,0.49614475]
[1758037109634,1.07915112,115360.0,115350.0,0.09614475]
[1758037110149,0.43820031,115360.0,115350.0,0.09614475]
[1758037110383,1.07915112,115360.0,115350.0,0.09614475]
[1758037110985,1.07915112,115360.0,115350.0,0.08764475]
[1758037113731,1.07915112,115360.0,115350.0,0.48764475]
[1758037115936,0.43820031,115360.0,115350.0,0.48764475]
[1758037116158,1.07939112,115360.0,115350.0,0.48764475]
[1758037116381,0.71188031,115360.0,115350.0,0.48764475]
[1758037116569,1.07939112,115360.0,115350.0,0.08764475]
[1758037117142,1.07939112,115360.0,115350.0,0.48764475]
[1758037117962,1.12550509,115360.0,115350.0,0.48764475]
[1758037120040,1.12550509,115360.0,115350.0,0.08764475]
[1758037120298,1.12554509,115360.0,115350.0,0.08764475]
[1758037120559,0.85182509,115360.0,115350.0,0.48764475]
[1758037120780,1.12554509,115360.0,115350.0,0.48764475]
[1758037123208,1.12550509,115360.0,115350.0,0.48764475]
[1758037123620,1.12550509,115360.0,115350.0,0.08764475]
[1758037124141,1.12550509,115360.0,115350.0,0.48764475]
[1758037125772,1.12750509,115360.0,115350.0,0.48764475]
[1758037126351,1.12550509,115360.0,115350.0,0.48664475]
[1758037126546,0.85482509,115360.0,115350.0,0.48764475]
[1758037126775,1.12846509,115360.0,115350.0,0.48764475]
[1758037127120,1.12846509,115360.0,115350.0,0.08764475]
[1758037127597,1.12846509,115360.0,115350.0,0.48764475]
[1758037128133,1.21846509,115360.0,115350.0,0.48764475]
[1758037130722,1.21846509,115360.0,115350.0,0.26103009]
[1758037130918,1.21830509,115360.0,115350.0,0.26103009]
[1758037131222,0.94482509,115360.0,115350.0,0.66103009]
[1758037131596,1.21830509,115360.0,115350.0,0.66103009]
[1758037131808,0.94482509,115360.0,115350.0,0.66103009]
[1758037132096,1.21830509,115360.0,115350.0,0.66103009]
[1758037132298,0.94482509,115360.0,115350.0,0.66103009]
[1758037132446,1.21830509,115360.0,115350.0,0.66103009]
[1758037132649,0.94482509,115360.0,115350.0,0.66103009]
[1758037132849,1.21830509,115360.0,115350.0,0.66103009]
[1758037134045,1.21830509,115360.0,115350.0,0.26103009]
[1758037134473,1.21830509,115360.0,115350.0,0.66103009]
[1758037135611,1.21830509,115360.0,115350.0,0.26103009]
[1758037136041,1.21830509,115360.0,115350.0,0.66103009]
[1758037139129,1.21830509,115360.0,115350.0,0.26103009]
[1758037139761,1.21830509,115360.0,115350.0,0.66103009]
[1758037142351,0.35714,115360.0,115350.0,0.66103009]
[1758037142616,0.63062,115360.0,115350.0,0.66103009]
[1758037142867,0.63062,115360.0,115350.0,0.26103009]
[1758037143362,0.63062,115360.0,115350.0,0.66103009]
[1758037143817,0.55226,115360.0,115350.0,1.07465487]
[1758037144037,0.60226,115360.0,115350.0,1.09912487]
[1758037144223,0.55226,115360.0,115350.0,1.09912487]
[1758037144727,0.60226,115360.0,115350.0,1.09912487]
[1758037144918,0.60435,115360.0,115350.0,1.09912487]
[1758037145167,0.55435,115360.0,115350.0,1.09912487]
[1758037145405,0.60435,115360.0,115350.0,1.09912487]
[1758037145841,0.55435,115360.0,115350.0,1.09912487]
[1758037146073,0.55226,115360.0,115350.0,1.10762487]
[1758037146634,0.60226,115360.0,115350.0,1.10762487]
[1758037147116,0.17878,115360.0,115350.0,1.08315487]
[1758037147411,0.45226,115360.0,115350.0,1.10762487]
[1758037148351,0.55226,115360.0,115350.0,1.10762487]
[1758037148553,0.45226,115360.0,115350.0,1.10762487]
[1758037148753,0.45226,115360.0,115350.0,0.69400009]
[1758037148982,0.55226,115360.0,115350.0,1.10762487]
[1758037149227,0.17878,115360.0,115350.0,1.10762487]
[1758037149537,0.45222,115360.0,115350.0,1.09912487]
[1758037150319,0.45222,115360.0,115350.0,1.12927677]
[1758037150592,0.46222,115360.0,115350.0,1.13777677]
[1758037150799,0.46212,115360.0,115350.0,1.13777677]
[1758037151247,0.36212,115360.0,115350.0,0.75019082]
[1758037151453,0.46212,115360.0,115350.0,1.1638156]
[1758037151675,0.46212,115360.0,115350.0,0.75019082]
[1758037151676,0.46421,115360.0,115350.0,0.75019082]
[1758037151877,0.46421,115360.0,115350.0,1.1638156]
[1758037152311,0.46212,115360.0,115350.0,1.1638156]
[1758037158304,0.36212,115360.0,115350.0,1.1638156]
[1758037158614,0.46212,115360.0,115350.0,1.1638156]
[1758037159329,0.36212,115360.0,115350.0,1.1638156]
[1758037159596,0.08868,115360.0,115350.0,1.57744038]
[1758037159862,0.08868,115360.0,115350.0,1.1638156]
[1758037159863,0.46208,115360.0,115350.0,1.1638156]
[1758037162564,0.36208,115360.0,115350.0,1.1638156]
[1758037163032,0.46208,115360.0,115350.0,1.1638156]
[1758037163539,0.46721,115360.0,115350.0,0.72572082]
[1758037163790,0.46721,115360.0,115350.0,1.1393456]
[1758037164036,0.49155,115360.0,115350.0,1.1393456]
[1758037164534,0.46721,115360.0,115350.0,1.1638156]
[1758037164777,0.46417,115360.0,115350.0,1.1638156]
[1758037165523,0.46208,115360.0,115350.0,1.1638156]
[1758037168582,0.36208,115360.0,115350.0,1.1638156]
[1758037168819,0.46208,115360.0,115350.0,0.75019082]
[1758037169067,0.46208,115360.0,115350.0,1.1638156]
[1758037169551,0.46208,115360.0,115350.0,1.6638156]
[1758037169831,0.46721,115360.0,115350.0,1.6638156]
[1758037170271,0.46208,115360.0,115350.0,1.6638156]
[1758037171914,0.46417,115360.0,115350.0,1.25019082]
[1758037172125,0.46208,115360.0,115350.0,1.6638156]
[1758037175320,0.46208,115360.0,115350.0,1.25019082]
[1758037175551,0.46729,115360.0,115350.0,1.6638156]
[1758037175759,0.46419,115360.0,115350.0,1.6638156]
[1758037175965,0.46208,115360.0,115350.0,1.6638156]
[1758037176427,0.36208,115360.0,115350.0,1.6638156]
[1758037176641,0.46208,115360.0,115350.0,1.6638156]
[1758037176857,0.08868,115360.0,115350.0,1.6638156]
[1758037177070,0.36204,115360.0,115350.0,1.6638156]
[1758037177328,0.46204,115360.0,115350.0,1.6638156]
[1758037178209,0.36204,115360.0,115350.0,1.6638156]
[1758037178438,0.18868,115360.0,115350.0,1.6638156]
[1758037178646,0.46204,115360.0,115350.0,2.07744038]
[1758037179061,0.36204,115360.0,115350.0,2.07744038]
[1758037179270,0.46204,115360.0,115350.0,2.07744038]
[1758037179508,0.46204,115360.0,115350.0,2.06894038]
[1758037179940,0.46204,115360.0,115350.0,1.60915851]
[1758037180163,0.46204,115360.0,115350.0,1.24169082]
[1758037180378,0.36204,115360.0,115350.0,1.60915851]
[1758037180565,0.18868,115360.0,115350.0,1.60915851]
[1758037180893,0.462,115360.0,115350.0,1.60915851]
[1758037181101,0.18868,115360.0,115350.0,1.60915851]
[1758037181561,0.362,115360.0,115350.0,1.60915851]
[1758037181775,0.462,115360.0,115350.0,1.60915851]
[1758037181984,0.362,115360.0,115350.0,1.60915851]
[1758037182213,0.462,115360.0,115350.0,1.60915851]
[1758037182439,0.462,115360.0,115350.0,1.61765851]
[1758037182895,0.18868,115360.0,115350.0,1.61765851]
[1758037183118,0.362,115360.0,115350.0,1.61765851]
[1758037183999,0.462,115360.0,115350.0,1.61765851]
[1758037185018,0.362,115360.0,115350.0,1.61765851]
[1758037185861,0.462,115360.0,115350.0,1.61765851]
[1758037187129,0.0054,115360.0,115350.0,1.95765851]
[1758037187340,0.27872,115360.0,115350.0,2.23097851]
[1758037188199,0.27672,115360.0,115350.0,2.23097851]